[Event "*** Titled Tuesday Blitz"]
[Site "Chess.com"]
[Date "2020.04.14"]
[Round "9"]
[White "kekic76"]
[Black "Vamostodorecto"]
[Result "0-1"]
[WhiteElo "2284"]
[BlackElo "2479"]
[TimeControl "180+1"]
[EndTime "11:42:13 PDT"]
[Termination "Vamostodorecto won by resignation"]

1. e4 {[%clk 0:03:00.9]} 1... e5 {[%clk 0:02:59.5]} 2. Nf3 {[%clk 0:03:00.1]}
2... Nc6 {[%clk 0:03:00]} 3. Bb5 {[%clk 0:02:59.6]} 3... a6 {[%clk 0:02:59.5]}
4. Ba4 {[%clk 0:02:59.6]} 4... Nf6 {[%clk 0:03:00.1]} 5. O-O {[%clk 0:02:59.3]}
5... Be7 {[%clk 0:03:00.7]} 6. Re1 {[%clk 0:02:59.1]} 6... b5 {[%clk 0:03:01.4]}
7. Bb3 {[%clk 0:02:58.6]} 7... d6 {[%clk 0:03:01]} 8. c3 {[%clk 0:02:57.2]} 8...
O-O {[%clk 0:03:01.2]} 9. h3 {[%clk 0:02:57]} 9... Na5 {[%clk 0:03:01.7]} 10.
Bc2 {[%clk 0:02:56.7]} 10... c5 {[%clk 0:03:02.2]} 11. d4 {[%clk 0:02:56]} 11...
Nd7 {[%clk 0:03:02.5]} 12. Nbd2 {[%clk 0:02:56]} 12... exd4 {[%clk 0:03:02.9]}
13. cxd4 {[%clk 0:02:55.8]} 13... Nc6 {[%clk 0:03:03.6]} 14. Nf1 {[%clk
0:02:53]} 14... cxd4 {[%clk 0:03:03.3]} 15. Nxd4 {[%clk 0:02:52.4]} 15... Nxd4
{[%clk 0:03:04.2]} 16. Qxd4 {[%clk 0:02:52.3]} 16... Ne5 {[%clk 0:03:05.1]} 17.
Ne3 {[%clk 0:02:49.7]} 17... Bxh3 {[%clk 0:03:05]} 18. Nf5 {[%clk 0:02:39.9]}
18... Bxf5 {[%clk 0:03:00.3]} 19. exf5 {[%clk 0:02:39.6]} 19... Bf6 {[%clk
0:03:01]} 20. Qd5 {[%clk 0:02:38.7]} 20... Rc8 {[%clk 0:02:58.3]} 21. Bb3 {[%clk
0:02:35.4]} 21... Rc5 {[%clk 0:02:51.1]} 22. Qb7 {[%clk 0:02:34.4]} 22... Nd3
{[%clk 0:02:31.2]} 23. Rd1 {[%clk 0:02:33.3]} 23... Nxb2 {[%clk 0:02:07.2]} 24.
Bxb2 {[%clk 0:02:29.1]} 24... Bxb2 {[%clk 0:02:08.1]} 25. Rab1 {[%clk
0:02:24.4]} 25... Be5 {[%clk 0:02:07]} 26. g3 {[%clk 0:02:19.5]} 26... Qg5
{[%clk 0:01:58.6]} 27. Kg2 {[%clk 0:02:15.2]} 27... h5 {[%clk 0:01:54.6]} 28.
Rh1 {[%clk 0:02:09.6]} 28... Qxf5 {[%clk 0:01:43.4]} 29. Rbe1 {[%clk 0:01:46.2]}
29... Rc3 {[%clk 0:01:36]} 30. Qe4 {[%clk 0:01:36.4]} 30... Qxe4+ {[%clk
0:01:29.2]} 31. Rxe4 {[%clk 0:01:37.3]} 31... g6 {[%clk 0:01:29.8]} 32. f4
{[%clk 0:01:37]} 32... Bf6 {[%clk 0:01:23.9]} 33. f5 {[%clk 0:01:37]} 33... Kg7
{[%clk 0:01:17.7]} 34. fxg6 {[%clk 0:01:35.9]} 34... fxg6 {[%clk 0:01:18.6]} 35.
Re6 {[%clk 0:01:35.9]} 35... Be5 {[%clk 0:01:17.9]} 36. Rh3 {[%clk 0:01:19.1]}
36... a5 {[%clk 0:01:16.8]} 37. g4 {[%clk 0:01:10.8]} 37... Rxh3 {[%clk
0:01:12.9]} 38. Kxh3 {[%clk 0:01:10.3]} 38... Rf3+ {[%clk 0:01:13.6]} 39. Kg2
{[%clk 0:01:10.3]} 39... Rg3+ {[%clk 0:01:13.6]} 40. Kf2 {[%clk 0:01:08.7]}
40... Rxg4 {[%clk 0:01:14.5]} 41. Kf3 {[%clk 0:00:59.2]} 41... a4 {[%clk
0:01:07.7]} 42. Bc2 {[%clk 0:00:55.5]} 42... Rg3+ {[%clk 0:01:03.7]} 43. Ke4
{[%clk 0:00:55]} 43... h4 {[%clk 0:01:02.6]} 44. Re7+ {[%clk 0:00:49.1]} 44...
Kh6 {[%clk 0:00:57.7]} 45. Bd3 {[%clk 0:00:44.9]} 45... h3 {[%clk 0:00:56.3]}
0-1

[Event "*** Titled Tuesday Blitz"]
[Site "Chess.com"]
[Date "2020.04.14"]
[Round "9"]
[White "plumalka"]
[Black "EvgenyRomanov"]
[Result "0-1"]
[WhiteElo "2387"]
[BlackElo "2600"]
[TimeControl "180+1"]
[EndTime "11:42:14 PDT"]
[Termination "EvgenyRomanov won by resignation"]

1. e4 {[%clk 0:03:00.9]} 1... e6 {[%clk 0:02:58.8]} 2. d4 {[%clk 0:03:00.6]}
2... d5 {[%clk 0:02:59.7]} 3. Nc3 {[%clk 0:03:00.6]} 3... Bb4 {[%clk 0:02:58.7]}
4. Qd3 {[%clk 0:03:00.8]} 4... dxe4 {[%clk 0:02:49.5]} 5. Qxe4 {[%clk
0:03:01.7]} 5... Nf6 {[%clk 0:02:47.9]} 6. Qh4 {[%clk 0:03:01.7]} 6... Nc6
{[%clk 0:02:42.2]} 7. Nf3 {[%clk 0:02:59.1]} 7... Bxc3+ {[%clk 0:02:38.4]} 8.
bxc3 {[%clk 0:02:57.8]} 8... Qd5 {[%clk 0:02:39]} 9. Bd3 {[%clk 0:02:56]} 9...
b6 {[%clk 0:02:28.5]} 10. O-O {[%clk 0:02:52.2]} 10... Bb7 {[%clk 0:02:27.5]}
11. Bg5 {[%clk 0:02:41]} 11... O-O-O {[%clk 0:02:24.8]} 12. Bxf6 {[%clk
0:02:35.3]} 12... gxf6 {[%clk 0:02:24.1]} 13. c4 {[%clk 0:02:24.2]} 13... Qa5
{[%clk 0:02:09.1]} 14. Qxf6 {[%clk 0:02:22.8]} 14... Rhg8 {[%clk 0:01:52.1]} 15.
Be4 {[%clk 0:02:16]} 15... Rg4 {[%clk 0:01:44]} 16. Rfe1 {[%clk 0:02:09.8]}
16... Nxd4 {[%clk 0:01:35.9]} 17. Bxb7+ {[%clk 0:02:06.3]} 17... Kxb7 {[%clk
0:01:36]} 18. Nxd4 {[%clk 0:01:44.3]} 18... Rdxd4 {[%clk 0:01:33.5]} 19. Qxf7
{[%clk 0:01:43.3]} 19... Rxc4 {[%clk 0:00:57.8]} 20. Rxe6 {[%clk 0:01:37.1]}
20... Qc3 {[%clk 0:00:44.6]} 21. Rae1 {[%clk 0:01:35.6]} 21... Rce4 {[%clk
0:00:40.9]} 22. Rf1 {[%clk 0:01:12.4]} 22... Qh3 {[%clk 0:00:28.6]} 23. g3
{[%clk 0:00:40.6]} 23... Rxe6 {[%clk 0:00:19]} 24. Qxe6 {[%clk 0:00:37.5]} 24...
Rxg3+ {[%clk 0:00:19.1]} 25. hxg3 {[%clk 0:00:37.8]} 25... Qxe6 {[%clk 0:00:20]}
26. f4 {[%clk 0:00:38.2]} 26... Qxa2 {[%clk 0:00:19.9]} 27. f5 {[%clk
0:00:38.7]} 27... Qf7 {[%clk 0:00:20.7]} 28. Rf4 {[%clk 0:00:37.7]} 28... a5
{[%clk 0:00:21.6]} 29. Kf2 {[%clk 0:00:36.7]} 29... b5 {[%clk 0:00:21.7]} 30.
Ke3 {[%clk 0:00:35.8]} 30... a4 {[%clk 0:00:21.9]} 31. Kd3 {[%clk 0:00:34.4]}
31... a3 {[%clk 0:00:21.6]} 32. Kc3 {[%clk 0:00:34.8]} 32... c5 {[%clk
0:00:21.9]} 33. g4 {[%clk 0:00:33.2]} 33... b4+ {[%clk 0:00:22]} 34. Kd2 {[%clk
0:00:30.3]} 34... a2 {[%clk 0:00:21.7]} 0-1

[Event "*** Titled Tuesday Blitz"]
[Site "Chess.com"]
[Date "2020.04.14"]
[Round "9"]
[White "JLRHei"]
[Black "pirulillo"]
[Result "1-0"]
[WhiteElo "2364"]
[BlackElo "2186"]
[TimeControl "180+1"]
[EndTime "11:42:14 PDT"]
[Termination "JLRHei won on time"]

1. d4 {[%clk 0:03:00.9]} 1... d5 {[%clk 0:02:57.4]} 2. c4 {[%clk 0:03:01.1]}
2... e6 {[%clk 0:02:57.5]} 3. Nf3 {[%clk 0:03:01.7]} 3... c5 {[%clk 0:02:57.7]}
4. g3 {[%clk 0:03:02.6]} 4... dxc4 {[%clk 0:02:55]} 5. Bg2 {[%clk 0:03:03.5]}
5... Nc6 {[%clk 0:02:54]} 6. O-O {[%clk 0:03:04.4]} 6... cxd4 {[%clk 0:02:52.3]}
7. Qa4 {[%clk 0:03:02]} 7... Nf6 {[%clk 0:02:38.6]} 8. Nxd4 {[%clk 0:02:59.2]}
8... Qxd4 {[%clk 0:02:20.5]} 9. Bxc6+ {[%clk 0:02:55.7]} 9... Bd7 {[%clk
0:02:13.7]} 10. Rd1 {[%clk 0:02:54.6]} 10... Qxd1+ {[%clk 0:01:53.2]} 11. Qxd1
{[%clk 0:02:55.5]} 11... Bxc6 {[%clk 0:01:53.3]} 12. Nc3 {[%clk 0:02:45]} 12...
a6 {[%clk 0:01:49.3]} 13. a4 {[%clk 0:02:44]} 13... h5 {[%clk 0:01:44.1]} 14.
Bg5 {[%clk 0:02:42.2]} 14... Bc5 {[%clk 0:01:40.9]} 15. h3 {[%clk 0:01:40.6]}
15... Nh7 {[%clk 0:01:25.6]} 16. Be3 {[%clk 0:01:32.3]} 16... Be7 {[%clk
0:01:13.2]} 17. Qd4 {[%clk 0:01:29.2]} 17... Ng5 {[%clk 0:00:49.4]} 18. Bxg5
{[%clk 0:01:22]} 18... Bxg5 {[%clk 0:00:48.7]} 19. Qxg7 {[%clk 0:01:19.7]} 19...
O-O-O {[%clk 0:00:35.4]} 20. Qxg5 {[%clk 0:01:18.2]} 20... h4 {[%clk 0:00:36.3]}
21. Rd1 {[%clk 0:00:59.8]} 21... Rdg8 {[%clk 0:00:35.1]} 22. Qe5 {[%clk
0:00:47.1]} 22... hxg3 {[%clk 0:00:34.3]} 23. fxg3 {[%clk 0:00:46.8]} 23... Rxh3
{[%clk 0:00:33.3]} 24. Ne4 {[%clk 0:00:46.8]} 24... Bxe4 {[%clk 0:00:18.2]} 25.
Qxe4 {[%clk 0:00:47.7]} 25... Rhxg3+ {[%clk 0:00:13.3]} 26. Kf2 {[%clk
0:00:46.9]} 26... R8g4 {[%clk 0:00:09.7]} 27. Qe5 {[%clk 0:00:37.3]} 27... Rg2+
{[%clk 0:00:07.6]} 28. Ke1 {[%clk 0:00:37.3]} 28... Rg1+ {[%clk 0:00:07.6]} 29.
Kd2 {[%clk 0:00:37.3]} 29... Rxd1+ {[%clk 0:00:07.6]} 30. Kxd1 {[%clk
0:00:37.2]} 1-0

[Event "*** Titled Tuesday Blitz"]
[Site "Chess.com"]
[Date "2020.04.14"]
[Round "9"]
[White "Suleyman_Chess06"]
[Black "Olga_Girya"]
[Result "0-1"]
[WhiteElo "2242"]
[BlackElo "2477"]
[TimeControl "180+1"]
[EndTime "11:42:16 PDT"]
[Termination "Olga_Girya won by resignation"]

1. Nf3 {[%clk 0:03:00.9]} 1... d5 {[%clk 0:02:59.3]} 2. d4 {[%clk 0:03:01.3]}
2... Nf6 {[%clk 0:02:58.8]} 3. Bf4 {[%clk 0:03:00.6]} 3... c5 {[%clk 0:02:58.6]}
4. e3 {[%clk 0:03:00.9]} 4... Nc6 {[%clk 0:02:58]} 5. c3 {[%clk 0:03:00.4]} 5...
cxd4 {[%clk 0:02:55.3]} 6. exd4 {[%clk 0:03:00]} 6... Bg4 {[%clk 0:02:49]} 7.
Bd3 {[%clk 0:02:59.3]} 7... e6 {[%clk 0:02:48.4]} 8. Nbd2 {[%clk 0:02:59.2]}
8... Bd6 {[%clk 0:02:47.1]} 9. Bg3 {[%clk 0:02:58.7]} 9... O-O {[%clk
0:02:45.4]} 10. O-O {[%clk 0:02:58.2]} 10... Rb8 {[%clk 0:02:37]} 11. Qc2 {[%clk
0:02:54.4]} 11... h6 {[%clk 0:02:31.6]} 12. Ne5 {[%clk 0:02:51.3]} 12... Bxe5
{[%clk 0:02:17.8]} 13. dxe5 {[%clk 0:02:52.2]} 13... Nd7 {[%clk 0:02:17.8]} 14.
Rfe1 {[%clk 0:02:46.5]} 14... Nc5 {[%clk 0:02:17.3]} 15. Bf1 {[%clk 0:02:39.4]}
15... Bf5 {[%clk 0:02:16.5]} 16. Qd1 {[%clk 0:02:36.4]} 16... Bd3 {[%clk
0:02:01.9]} 17. Nb3 {[%clk 0:02:30.7]} 17... Nxb3 {[%clk 0:01:58.6]} 18. axb3
{[%clk 0:02:28]} 18... Bxf1 {[%clk 0:01:56.7]} 19. Kxf1 {[%clk 0:02:28.9]} 19...
a5 {[%clk 0:01:56]} 20. Qd3 {[%clk 0:02:26.1]} 20... Qb6 {[%clk 0:01:54]} 21.
Qc2 {[%clk 0:02:23.6]} 21... Rbc8 {[%clk 0:01:52]} 22. Kg1 {[%clk 0:02:22.7]}
22... Nd4 {[%clk 0:01:50.2]} 23. Qd1 {[%clk 0:02:17.7]} 23... Nxb3 {[%clk
0:01:49.1]} 24. Ra3 {[%clk 0:02:15.7]} 24... Nc5 {[%clk 0:01:48.8]} 25. b3
{[%clk 0:02:08.9]} 25... Ne4 {[%clk 0:01:47.6]} 26. c4 {[%clk 0:02:01.2]} 26...
Nxg3 {[%clk 0:01:47]} 27. hxg3 {[%clk 0:01:59.1]} 27... dxc4 {[%clk 0:01:47]}
28. bxc4 {[%clk 0:02:00]} 28... Rxc4 {[%clk 0:01:47]} 29. Qb1 {[%clk 0:02:00.3]}
29... Rb4 {[%clk 0:01:39.2]} 30. Qa1 {[%clk 0:02:00]} 30... Rb2 {[%clk
0:01:33.9]} 31. Rf1 {[%clk 0:01:54.6]} 31... Ra8 {[%clk 0:01:32.7]} 32. Ra2
{[%clk 0:01:54.6]} 32... Rxa2 {[%clk 0:01:27.9]} 33. Qxa2 {[%clk 0:01:55.5]}
33... Qc5 {[%clk 0:01:27.9]} 34. Rb1 {[%clk 0:01:48]} 34... b5 {[%clk
0:01:23.8]} 35. Qb3 {[%clk 0:01:45.4]} 35... Qxe5 {[%clk 0:01:21.4]} 36. Qxb5
{[%clk 0:01:44.5]} 36... Qxb5 {[%clk 0:01:21.5]} 37. Rxb5 {[%clk 0:01:45.4]}
37... a4 {[%clk 0:01:22.1]} 38. Rb1 {[%clk 0:01:46.2]} 38... a3 {[%clk
0:01:22.2]} 39. Ra1 {[%clk 0:01:47.1]} 39... a2 {[%clk 0:01:22.1]} 40. Kf1
{[%clk 0:01:47.4]} 40... f5 {[%clk 0:01:21.8]} 41. Ke2 {[%clk 0:01:48.3]} 41...
Kf7 {[%clk 0:01:22.1]} 42. Kd2 {[%clk 0:01:49.2]} 42... Kf6 {[%clk 0:01:22.3]}
43. Kc2 {[%clk 0:01:50.1]} 43... Ke5 {[%clk 0:01:22.5]} 44. Kb2 {[%clk 0:01:51]}
44... Kf6 {[%clk 0:01:16.2]} 45. f4 {[%clk 0:01:49.5]} 45... g5 {[%clk
0:01:14.6]} 46. Kb3 {[%clk 0:01:27]} 46... Ra6 {[%clk 0:01:09.3]} 47. Kb2 {[%clk
0:01:26.4]} 47... gxf4 {[%clk 0:01:01]} 48. gxf4 {[%clk 0:01:25.6]} 48... Kg6
{[%clk 0:01:01.2]} 49. g3 {[%clk 0:01:09.1]} 49... Kh5 {[%clk 0:01:00.9]} 50.
Rh1+ {[%clk 0:01:09.5]} 50... Kg4 {[%clk 0:01:01]} 51. Ka1 {[%clk 0:01:10]}
51... Kxg3 {[%clk 0:01:00.9]} 52. Rxh6 {[%clk 0:01:10.2]} 52... Kxf4 {[%clk
0:01:01]} 53. Rh1 {[%clk 0:01:10.1]} 53... e5 {[%clk 0:01:00.2]} 54. Rf1+ {[%clk
0:01:09.6]} 54... Kg5 {[%clk 0:01:00]} 55. Rg1+ {[%clk 0:01:09.3]} 55... Kf6
{[%clk 0:00:59.7]} 56. Rh1 {[%clk 0:01:09]} 56... Ra5 {[%clk 0:00:59.7]} 57.
Rh6+ {[%clk 0:01:08.4]} 57... Kg5 {[%clk 0:00:59.3]} 58. Rh1 {[%clk 0:01:07.3]}
58... f4 {[%clk 0:00:59.3]} 59. Rg1+ {[%clk 0:01:07.4]} 59... Kf5 {[%clk
0:00:59.2]} 60. Rh1 {[%clk 0:01:07.4]} 60... f3 {[%clk 0:00:59.3]} 0-1

[Event "*** Titled Tuesday Blitz"]
[Site "Chess.com"]
[Date "2020.04.14"]
[Round "9"]
[White "serhanberat_ozdemir"]
[Black "ridnani2021"]
[Result "1-0"]
[WhiteElo "2447"]
[BlackElo "1891"]
[TimeControl "180+1"]
[EndTime "11:42:17 PDT"]
[Termination "serhanberat_ozdemir won by resignation"]

1. Na3 {[%clk 0:02:58.5]} 1... e5 {[%clk 0:02:58.9]} 2. Nb1 {[%clk 0:02:59.4]}
2... Nf6 {[%clk 0:02:57.7]} 3. g3 {[%clk 0:02:57.8]} 3... d5 {[%clk 0:02:57.2]}
4. Bg2 {[%clk 0:02:58.2]} 4... c6 {[%clk 0:02:55.4]} 5. c4 {[%clk 0:02:58.4]}
5... dxc4 {[%clk 0:02:53.3]} 6. Nc3 {[%clk 0:02:58.5]} 6... Bd6 {[%clk
0:02:53.2]} 7. Qa4 {[%clk 0:02:55.6]} 7... Be6 {[%clk 0:02:52.4]} 8. Nf3 {[%clk
0:02:53.6]} 8... O-O {[%clk 0:02:51.8]} 9. Ng5 {[%clk 0:02:52.6]} 9... Bd5
{[%clk 0:02:50.3]} 10. e4 {[%clk 0:02:49.2]} 10... Be6 {[%clk 0:02:48.4]} 11.
Nxe6 {[%clk 0:02:49.3]} 11... fxe6 {[%clk 0:02:49.3]} 12. Qxc4 {[%clk
0:02:49.6]} 12... Qe7 {[%clk 0:02:48.4]} 13. O-O {[%clk 0:02:48]} 13... Nbd7
{[%clk 0:02:48.4]} 14. d3 {[%clk 0:02:37.6]} 14... Nb6 {[%clk 0:02:47.9]} 15.
Qb3 {[%clk 0:02:37.1]} 15... Rac8 {[%clk 0:02:46.8]} 16. Be3 {[%clk 0:02:36.4]}
16... c5 {[%clk 0:02:46.6]} 17. Rad1 {[%clk 0:02:33.5]} 17... c4 {[%clk
0:02:46.8]} 18. dxc4 {[%clk 0:02:34]} 18... Nxc4 {[%clk 0:02:47.5]} 19. Bc1
{[%clk 0:02:33.4]} 19... Rfd8 {[%clk 0:02:44.4]} 20. h3 {[%clk 0:02:29.5]} 20...
a6 {[%clk 0:02:43.3]} 21. a4 {[%clk 0:02:28.8]} 21... Qc7 {[%clk 0:02:37.6]} 22.
Kh2 {[%clk 0:02:27]} 22... Qb6 {[%clk 0:02:37.3]} 23. Qxb6 {[%clk 0:02:25.2]}
23... Nxb6 {[%clk 0:02:38.2]} 24. f4 {[%clk 0:02:16.1]} 24... exf4 {[%clk
0:02:34.8]} 25. gxf4 {[%clk 0:02:13.4]} 25... e5 {[%clk 0:02:34.2]} 26. Rxd6
{[%clk 0:02:08.9]} 26... Rxd6 {[%clk 0:02:32.5]} 27. fxe5 {[%clk 0:02:09.3]}
27... Re6 {[%clk 0:02:30.3]} 28. exf6 {[%clk 0:02:09.2]} 28... Rxf6 {[%clk
0:02:30.9]} 29. Rxf6 {[%clk 0:01:57.8]} 29... gxf6 {[%clk 0:02:31.8]} 30. Bf4
{[%clk 0:01:53.3]} 30... Nc4 {[%clk 0:02:20.7]} 31. b3 {[%clk 0:01:51.8]} 31...
Ne5 {[%clk 0:02:20]} 32. Nd5 {[%clk 0:01:52]} 32... Kf7 {[%clk 0:02:15.2]} 33.
Bxe5 {[%clk 0:01:44.2]} 33... fxe5 {[%clk 0:02:13]} 34. Kg3 {[%clk 0:01:44.6]}
34... Rc2 {[%clk 0:01:56.4]} 35. Bf1 {[%clk 0:01:38.4]} 35... Rc1 {[%clk
0:01:56.2]} 36. Bc4 {[%clk 0:01:38.4]} 36... Kg6 {[%clk 0:01:51.1]} 37. Kh4
{[%clk 0:01:28.2]} 37... Re1 {[%clk 0:01:40.4]} 38. Ne7+ {[%clk 0:01:23.6]}
38... Kf6 {[%clk 0:01:38.8]} 39. Ng8+ {[%clk 0:01:17.5]} 39... Kg6 {[%clk
0:01:28]} 40. Bd5 {[%clk 0:01:11.9]} 40... b5 {[%clk 0:01:27.5]} 41. axb5 {[%clk
0:01:11.3]} 41... axb5 {[%clk 0:01:28.4]} 42. Ne7+ {[%clk 0:01:11.7]} 42... Kf6
{[%clk 0:01:27.2]} 43. Nc6 {[%clk 0:01:12.2]} 43... Ra1 {[%clk 0:01:10.6]} 44.
Kg4 {[%clk 0:01:09.4]} 44... Rg1+ {[%clk 0:01:07.6]} 45. Kh4 {[%clk 0:01:08.2]}
45... Ra1 {[%clk 0:01:07.2]} 46. Kh5 {[%clk 0:01:08.4]} 46... Ra2 {[%clk
0:01:01.7]} 47. h4 {[%clk 0:01:08]} 47... Rh2 {[%clk 0:01:01.1]} 48. Na7 {[%clk
0:01:06.5]} 48... b4 {[%clk 0:00:54.1]} 49. Nc6 {[%clk 0:00:59.3]} 49... Rb2
{[%clk 0:00:51.9]} 50. Nxb4 {[%clk 0:00:58.2]} 50... Ke7 {[%clk 0:00:52.2]} 51.
Nd3 {[%clk 0:00:56.4]} 51... Rh2 {[%clk 0:00:50.8]} 52. Nxe5 {[%clk 0:00:56.4]}
52... Kd6 {[%clk 0:00:50.5]} 53. Ng4 {[%clk 0:00:55.1]} 53... Re2 {[%clk
0:00:49.5]} 54. Nf6 {[%clk 0:00:51.4]} 54... Ke5 {[%clk 0:00:48.9]} 55. Nxh7
{[%clk 0:00:51.2]} 1-0

[Event "*** Titled Tuesday Blitz"]
[Site "Chess.com"]
[Date "2020.04.14"]
[Round "9"]
[White "dey2580"]
[Black "Generalas"]
[Result "0-1"]
[WhiteElo "2437"]
[BlackElo "2342"]
[TimeControl "180+1"]
[EndTime "11:42:17 PDT"]
[Termination "Generalas won by resignation"]

1. d4 {[%clk 0:03:00.9]} 1... Nf6 {[%clk 0:02:59.2]} 2. Nf3 {[%clk 0:03:00.8]}
2... e6 {[%clk 0:02:57.4]} 3. e3 {[%clk 0:03:00.8]} 3... c5 {[%clk 0:02:57.1]}
4. Bd3 {[%clk 0:03:00.3]} 4... b6 {[%clk 0:02:57]} 5. O-O {[%clk 0:02:59.8]}
5... Bb7 {[%clk 0:02:57.2]} 6. c4 {[%clk 0:03:00.4]} 6... Be7 {[%clk 0:02:54.3]}
7. Nc3 {[%clk 0:03:00.9]} 7... O-O {[%clk 0:02:54.2]} 8. d5 {[%clk 0:03:01.4]}
8... d6 {[%clk 0:02:52.4]} 9. h3 {[%clk 0:03:00]} 9... e5 {[%clk 0:02:52.3]} 10.
e4 {[%clk 0:03:00.1]} 10... Ne8 {[%clk 0:02:50.6]} 11. Ne1 {[%clk 0:02:58.7]}
11... Bg5 {[%clk 0:02:48]} 12. f4 {[%clk 0:02:57.7]} 12... Bxf4 {[%clk
0:02:44.4]} 13. Bxf4 {[%clk 0:02:58.2]} 13... exf4 {[%clk 0:02:44.8]} 14. Rxf4
{[%clk 0:02:58.6]} 14... Nd7 {[%clk 0:02:45.3]} 15. Rf1 {[%clk 0:02:55.7]} 15...
Ne5 {[%clk 0:02:44.9]} 16. Nf3 {[%clk 0:02:56]} 16... Ng6 {[%clk 0:02:40.7]} 17.
Qd2 {[%clk 0:02:53.7]} 17... Nf6 {[%clk 0:02:38]} 18. Ne2 {[%clk 0:02:45.8]}
18... Nd7 {[%clk 0:02:35.1]} 19. Nf4 {[%clk 0:02:45.7]} 19... Nge5 {[%clk
0:02:33.3]} 20. Nxe5 {[%clk 0:02:40.3]} 20... Nxe5 {[%clk 0:02:34.2]} 21. Rae1
{[%clk 0:02:36.3]} 21... Qg5 {[%clk 0:02:27.8]} 22. b3 {[%clk 0:02:28.9]} 22...
Rae8 {[%clk 0:02:26.8]} 23. Bb1 {[%clk 0:02:27.2]} 23... Bc8 {[%clk 0:02:26.2]}
24. Qf2 {[%clk 0:02:25.3]} 24... h6 {[%clk 0:02:04.6]} 25. Re3 {[%clk
0:02:23.7]} 25... Kh8 {[%clk 0:01:56.5]} 26. Rg3 {[%clk 0:02:19.7]} 26... Qf6
{[%clk 0:01:54.7]} 27. Qd2 {[%clk 0:02:07.3]} 27... Qh4 {[%clk 0:01:52.4]} 28.
Qf2 {[%clk 0:02:04.1]} 28... Qf6 {[%clk 0:01:51.5]} 29. Qd2 {[%clk 0:01:59]}
29... Qh4 {[%clk 0:01:50.8]} 30. Qc3 {[%clk 0:01:52.5]} 30... a6 {[%clk
0:01:42.4]} 31. a4 {[%clk 0:01:51.8]} 31... Bd7 {[%clk 0:01:42.1]} 32. Bc2
{[%clk 0:01:42.8]} 32... b5 {[%clk 0:01:41.2]} 33. axb5 {[%clk 0:01:41.6]} 33...
axb5 {[%clk 0:01:42.1]} 34. Re3 {[%clk 0:01:31]} 34... Ra8 {[%clk 0:01:38.3]}
35. Ne2 {[%clk 0:01:10.5]} 35... Ra3 {[%clk 0:01:33.5]} 36. Qb2 {[%clk 0:01:00]}
36... Rfa8 {[%clk 0:01:31.9]} 37. Rg3 {[%clk 0:00:40.4]} 37... bxc4 {[%clk
0:01:26.3]} 38. Rxf7 {[%clk 0:00:40.1]} 38... Ra2 {[%clk 0:01:09.2]} 39. Qc3
{[%clk 0:00:32.5]} 39... Rxc2 {[%clk 0:01:08.5]} 40. Qxc2 {[%clk 0:00:17.4]}
40... Nxf7 {[%clk 0:01:08.3]} 41. Qxc4 {[%clk 0:00:14.6]} 41... Ne5 {[%clk
0:01:02.5]} 42. Qc3 {[%clk 0:00:15]} 42... Ra2 {[%clk 0:01:00.5]} 43. Nf4 {[%clk
0:00:09.1]} 43... Qxf4 {[%clk 0:00:59.3]} 0-1

[Event "*** Titled Tuesday Blitz"]
[Site "Chess.com"]
[Date "2020.04.14"]
[Round "9"]
[White "Bagirova"]
[Black "KingCrusher275"]
[Result "1-0"]
[WhiteElo "2212"]
[BlackElo "2336"]
[TimeControl "180+1"]
[EndTime "11:42:19 PDT"]
[Termination "Bagirova won by checkmate"]

1. e4 {[%clk 0:03:00.9]} 1... c5 {[%clk 0:02:59.5]} 2. Nf3 {[%clk 0:02:59.8]}
2... e6 {[%clk 0:02:59.8]} 3. d4 {[%clk 0:03:00.1]} 3... cxd4 {[%clk 0:03:00.2]}
4. Nxd4 {[%clk 0:03:00.8]} 4... Nc6 {[%clk 0:03:00.6]} 5. Nxc6 {[%clk
0:02:59.6]} 5... bxc6 {[%clk 0:02:58.3]} 6. Bd3 {[%clk 0:02:58.5]} 6... d5
{[%clk 0:02:56.8]} 7. exd5 {[%clk 0:02:56.7]} 7... cxd5 {[%clk 0:02:56.6]} 8.
O-O {[%clk 0:02:53.7]} 8... Nf6 {[%clk 0:02:56.6]} 9. Qe2 {[%clk 0:02:50.9]}
9... Be7 {[%clk 0:02:54.5]} 10. Re1 {[%clk 0:02:46]} 10... O-O {[%clk
0:02:53.4]} 11. h3 {[%clk 0:02:46.3]} 11... Bb7 {[%clk 0:02:51.9]} 12. Nc3
{[%clk 0:02:45.6]} 12... Rc8 {[%clk 0:02:50.5]} 13. Nb5 {[%clk 0:02:37]} 13...
a6 {[%clk 0:02:44.7]} 14. Nd4 {[%clk 0:02:35.9]} 14... Qb6 {[%clk 0:02:31.7]}
15. c3 {[%clk 0:02:24.1]} 15... Bc5 {[%clk 0:02:23.7]} 16. Be3 {[%clk
0:02:19.1]} 16... Qd6 {[%clk 0:02:13]} 17. Bg5 {[%clk 0:02:11.7]} 17... Ne4
{[%clk 0:02:06.4]} 18. Bh4 {[%clk 0:01:59.4]} 18... Qb6 {[%clk 0:01:47.7]} 19.
Nb3 {[%clk 0:01:45]} 19... Bd6 {[%clk 0:01:44.1]} 20. Rad1 {[%clk 0:01:39.2]}
20... Bb8 {[%clk 0:01:29.5]} 21. Bxe4 {[%clk 0:01:21]} 21... dxe4 {[%clk
0:01:29]} 22. Qh5 {[%clk 0:01:08.4]} 22... f5 {[%clk 0:00:52.2]} 23. Be7 {[%clk
0:01:03.3]} 23... Rf7 {[%clk 0:00:43.7]} 24. Bc5 {[%clk 0:00:38.1]} 24... Rxc5
{[%clk 0:00:23.5]} 25. Nxc5 {[%clk 0:00:37.1]} 25... Qxc5 {[%clk 0:00:22.8]} 26.
Rd8+ {[%clk 0:00:37]} 26... Rf8 {[%clk 0:00:23.2]} 27. Red1 {[%clk 0:00:34.4]}
27... Qc7 {[%clk 0:00:16.3]} 28. R1d7 {[%clk 0:00:25]} 28... Rxd8 {[%clk
0:00:14.4]} 29. Qf7+ {[%clk 0:00:23]} 29... Kh8 {[%clk 0:00:10.9]} 30. Qxg7#
{[%clk 0:00:23.3]} 1-0